bitfinex-derivatives/quotes_ETHF0:USTF0_20250911
["timestamp","ask_amount","ask_price","bid_price","bid_amount"]
[1757596324372,1.4908,4395.9,4394.6,1.4832]
[1757596324564,0.253,4395.8,4394.6,1.4832]
[1757596325070,0.2274,4396.2,4394.6,1.4832]
[1757596325259,0.253,4396.1,4394.6,1.4832]
[1757596325462,3.09719681,4398.0,4396.1,1.4832]
[1757596325663,1.4908,4398.0,4396.1,1.4832]
[1757596325966,2.0896,4398.0,4396.1,1.4832]
[1757596326471,1.4908,4397.8,4396.1,1.4832]
[1757596326668,0.5798301,4397.9,4396.1,1.4832]
[1757596326669,0.5381,4397.5,4396.1,1.4832]
[1757596326862,1.7182,4397.4,4396.1,1.4832]
[1757596327358,1.4908,4397.2,4396.1,1.4832]
[1757596327560,1.4908,4397.2,4396.1,1.4132]
[1757596327969,0.254,4397.1,4396.1,1.4132]
[1757596328373,2.86891879,4397.0,4395.0,0.5816]
[1757596328573,0.40947,4394.6,4394.0,0.5816]
[1757596328971,0.254,4395.6,4394.0,0.5816]
[1757596329172,0.254,4395.8,4394.0,0.5816]
[1757596329470,1.71832,4395.7,4393.5,0.5816]
[1757596329672,0.5988,4395.5,4393.6,1.4832]
[1757596329864,2.07168255,4395.4,4393.6,1.4832]
[1757596330066,1.4908,4395.2,4393.6,1.4832]
[1757596330264,0.58088255,4395.1,4393.6,1.4832]
[1757596330462,0.255,4395.0,4393.6,1.4832]
[1757596330667,1.4908,4394.8,4393.6,1.4832]
[1757596331376,1.4908,4394.6,4393.6,1.4832]
[1757596331671,1.18039907,4394.5,4393.6,1.4832]
[1757596331873,1.18039907,4394.5,4392.5,0.5816]
[1757596331874,2.07238684,4394.4,4392.5,0.5816]
[1757596332066,2.68769681,4394.2,4391.8,1.4832]
[1757596332271,1.79569681,4394.0,4392.2,1.4832]
[1757596332472,1.4908,4393.8,4392.2,1.4832]
[1757596332674,1.4908,4393.6,4392.2,1.4832]
[1757596332876,0.58158684,4393.5,4392.6,1.4832]
[1757596333175,1.4908,4392.9,4391.5,2.0648]
[1757596333473,1.4908,4392.7,4391.5,2.0648]
[1757596333674,0.58158684,4392.6,4391.5,0.5816]
[1757596333875,0.255,4392.5,4391.6,1.4832]
[1757596334077,0.5875747,4392.4,4391.6,1.4832]
[1757596334276,0.255,4393.3,4391.6,1.4832]
[1757596334479,0.58710448,4393.2,4391.6,1.4832]
[1757596334671,0.58710448,4393.1,4391.6,1.4832]
[1757596334873,0.58710448,4393.0,4391.6,1.4832]
[1757596335169,0.255,4393.3,4391.6,1.4832]
[1757596335170,1.4908,4392.8,4391.6,1.4832]
[1757596335480,0.255,4392.9,4391.6,1.4832]
[1757596335677,0.58728386,4392.8,4391.6,1.4832]
[1757596335877,1.19689681,4393.7,4391.5,0.5816]
[1757596335878,1.19689681,4393.8,4391.8,1.4832]
[1757596336080,0.58724156,4393.7,4392.4,0.40967]
[1757596336272,2.79275924,4395.2,4392.4,0.40967]
[1757596336273,1.19689681,4394.8,4393.6,1.4832]
[1757596336472,0.21,4394.9,4393.6,1.4832]
[1757596336473,0.40956,4393.7,4393.6,1.4832]
[1757596337182,1.02377,4394.3,4393.6,4.0]
[1757596337379,1.19689681,4395.7,4394.1,1.4832]
[1757596337601,1.19689681,4396.6,4395.5,0.5816]
[1757596337775,0.44222445,4397.2,4395.5,0.5816]
[1757596337977,0.256,4397.2,4395.6,1.4832]
[1757596338576,1.4908,4397.1,4395.6,1.4832]
[1757596338782,0.256,4397.0,4395.6,1.4832]
[1757596338977,1.4908,4397.1,4395.6,1.4832]
[1757596339178,1.4908,4397.3,4395.6,1.4832]
[1757596339577,0.2274,4397.4,4395.7,4.45079431]
[1757596339777,1.19689681,4398.6,4396.9,1.4832]
[1757596340084,2.0896,4398.6,4396.9,1.4832]
[1757596340275,2.0896,4398.6,4396.3,1.4832]
[1757596340475,3.28649681,4398.6,4396.3,1.4832]
[1757596340675,1.4908,4398.4,4396.3,1.4832]
[1757596340887,2.68769681,4398.4,4396.3,1.4832]
[1757596341076,1.4908,4398.2,4396.3,1.4832]
[1757596342377,1.4908,4398.2,4395.6,1.4832]
[1757596342577,2.68769681,4397.9,4395.6,1.4832]
[1757596342885,1.4908,4397.7,4395.6,1.4832]
[1757596343883,0.256,4397.6,4395.6,1.4832]
[1757596344180,1.4908,4397.3,4394.9,1.4832]
[1757596344486,1.4908,4397.0,4394.9,1.4832]
[1757596344682,0.5988,4396.8,4394.9,1.4832]
[1757596344880,1.4908,4396.7,4394.9,1.4832]
[1757596345183,1.4908,4397.2,4395.1,1.4832]
[1757596345384,0.256,4397.1,4395.1,1.4832]
[1757596345994,34.2658,4397.8,4395.1,1.4832]
[1757596345995,1.4908,4396.9,4395.3,1.4832]
[1757596346292,0.256,4396.8,4395.3,1.4832]
[1757596346476,0.256,4396.9,4395.3,1.4832]
[1757596346783,0.256,4396.9,4395.7,1.4832]
[1757596347082,1.4908,4396.7,4395.7,1.4832]
[1757596347484,0.256,4396.7,4395.7,1.4832]
[1757596348388,0.256,4397.4,4395.7,1.4832]
[1757596349082,34.2738,4397.8,4395.7,1.71065]
[1757596349281,0.256,4397.7,4395.7,1.71065]
[1757596349483,34.2738,4397.8,4396.0,0.6103]
[1757596349684,1.02324,4396.6,4396.1,1.4853]
[1757596349877,1.02314,4397.0,4396.5,0.474]
[1757596350078,1.4988,4397.8,4396.6,0.8434]
[1757596350479,0.2273,4398.5,4396.6,0.8434]
[1757596350677,1.7261,4398.5,4396.6,0.8434]
[1757596350880,1.7261,4398.5,4396.9,0.8434]
[1757596350881,0.2273,4398.5,4396.9,0.8434]
[1757596351085,0.2273,4398.5,4396.9,1.0994]
[1757596351287,0.17,4398.9,4397.7,0.6161]
[1757596352383,1.4988,4398.8,4397.7,0.6161]
[1757596353283,0.17,4398.9,4397.7,0.6161]
[1757596353584,1.4988,4398.8,4397.7,0.6161]
[1757596355176,0.17,4398.9,4397.7,0.22736]
[1757596355390,0.17,4398.9,4397.8,0.6161]
[1757596356789,1.6688,4398.9,4397.8,0.6161]
[1757596357784,0.17,4398.9,4397.8,0.6161]
[1757596358691,1.4988,4398.8,4397.8,0.6161]
[1757596359081,0.17,4398.9,4397.9,2.98785731]
[1757596359282,2.1434,4400.0,4398.1,0.6161]
[1757596359484,2.1434,4400.0,4398.3,0.40913]
[1757596359692,2.1434,4400.0,4398.4,0.255]
[1757596359879,2.1434,4400.0,4398.6,0.4461]
[1757596360396,1.4988,4400.6,4398.8,0.4461]
[1757596360885,1.4988,4400.6,4398.6,3.35785422]
[1757596360886,1.4988,4400.4,4399.0,0.4461]
[1757596361790,1.4988,4400.4,4398.5,41.2461]
[1757596362088,0.254,4400.7,4398.5,40.8]
[1757596362294,0.254,4400.7,4397.1,0.4461]
[1757596362593,1.4988,4400.4,4397.2,0.254]
[1757596362794,0.22734001,4400.4,4397.2,41.054]
[1757596363093,0.22733,4400.3,4397.3,2.93195228]
[1757596363294,1.4988,4400.3,4397.3,0.254]
[1757596363484,1.4988,4400.3,4397.4,0.4461]
[1757596363682,0.6446,4401.0,4397.5,0.4092]
[1757596363683,0.6446,4400.0,4397.5,0.4092]
[1757596363994,1.4988,4399.9,4397.4,0.4461]
[1757596365283,0.6446,4400.0,4397.4,0.4461]
[1757596365284,1.4988,4399.7,4397.4,0.4461]
[1757596365689,1.4988,4399.7,4397.5,0.254]
[1757596365894,0.189,4399.6,4397.5,0.254]
[1757596366095,1.4988,4399.4,4397.7,0.85529]
[1757596366389,1.4988,4399.4,4397.5,0.254]
[1757596366390,1.4988,4399.4,4398.2,0.4461]
[1757596366590,1.4988,4399.4,4398.3,0.254]
[1757596366785,1.4988,4399.4,4398.4,0.4461]
[1757596367186,1.4988,4399.9,4398.4,0.4461]
[1757596367696,2.1434,4400.5,4398.6,0.4461]
[1757596367893,2.1434,4400.5,4398.5,2.92116645]
[1757596367894,2.1434,4400.5,4399.3,0.40903]
[1757596368095,1.4988,4400.5,4399.5,0.40901]
[1757596368302,1.4988,4400.4,4399.4,44.22928156]
[1757596368493,1.4988,4400.4,4399.4,0.4461]
[1757596368690,2.1434,4401.0,4399.2,0.18544763]
[1757596368994,2.1434,4401.0,4399.9,0.4461]
[1757596369201,2.1434,4401.0,4400.0,0.254]
[1757596369698,2.1434,4401.0,4400.1,2.89032651]
[1757596369889,2.1434,4401.5,4400.2,0.4442]
[1757596370088,0.6446,4401.5,4400.2,0.254]
[1757596370293,1.4988,4401.4,4400.2,0.254]
[1757596370491,1.4988,4401.4,4399.4,0.4442]
[1757596370798,0.254,4401.3,4399.5,0.254]
[1757596371098,1.4988,4401.2,4399.5,0.254]
[1757596372299,1.4988,4400.9,4399.5,0.254]
[1757596372503,0.58603934,4400.8,4399.4,0.253]
[1757596372687,1.4988,4400.9,4399.4,0.253]
[1757596372892,1.4988,4400.9,4398.9,40.8]
[1757596372893,2.08483294,4400.8,4399.3,0.253]
[1757596373095,1.4988,4400.8,4399.3,0.253]
[1757596373396,1.4988,4400.6,4399.3,0.253]
[1757596373597,1.4988,4400.4,4399.3,0.6972]
[1757596373901,1.4988,4400.4,4399.4,3.8247195]
[1757596374099,1.4988,4400.9,4399.5,0.4442]
[1757596374503,1.4988,4400.9,4399.7,0.4442]
[1757596375197,2.1434,4401.5,4400.2,0.40895]
[1757596375402,2.1434,4401.5,4400.3,0.253]
[1757596376097,2.1434,4401.5,4400.2,2.90551216]
[1757596376098,0.6446,4401.5,4400.2,2.90551216]
[1757596376398,0.6446,4401.5,4400.1,0.4442]
[1757596376399,1.4988,4401.4,4400.4,2.94691759]
[1757596376597,1.4988,4401.4,4400.5,0.4442]
[1757596376995,1.4988,4401.4,4400.6,0.40891]
[1757596377199,1.4988,4401.4,4400.6,2.98620839]
[1757596377394,1.4988,4401.4,4400.5,0.4442]
[1757596377602,1.4988,4401.4,4400.6,0.069]
[1757596377791,1.4988,4401.4,4399.3,1.0226]
[1757596377792,0.6446,4401.5,4400.7,40.8]
[1757596377992,1.5491,4400.9,4399.5,0.17828256]
[1757596378198,1.5491,4400.9,4399.6,0.254]
[1757596378397,1.5491,4400.9,4399.7,40.8]
[1757596378606,1.5491,4400.9,4399.8,0.254]
[1757596379100,1.5491,4400.9,4399.7,0.254]
[1757596379403,1.5491,4400.7,4399.7,0.254]
[1757596380503,1.5491,4400.6,4399.3,40.8]
[1757596380693,1.5491,4400.4,4399.4,0.253]
[1757596382307,1.5491,4400.4,4399.5,3.01724799]
[1757596382612,0.6448,4399.5,4399.2,0.253]
[1757596382801,1.5491,4399.4,4399.2,0.253]
[1757596383405,1.5491,4398.9,4398.6,32.75]
[1757596383604,1.5491,4398.9,4397.7,0.85378]
[1757596383605,0.6448,4398.5,4398.4,0.253]
[1757596383907,2.1939,4398.5,4398.4,0.253]
[1757596384204,1.5491,4398.5,4398.4,0.253]
[1757596384407,1.5491,4399.1,4398.4,4.253]
[1757596384598,1.5491,4399.1,4398.4,0.253]
[1757596384805,1.5491,4399.8,4398.8,0.4446]
[1757596385307,1.5491,4399.8,4398.9,2.97268369]
[1757596385507,0.253,4401.1,4399.2,0.40904]
[1757596385508,1.5491,4400.4,4399.2,0.40904]
[1757596385706,1.5491,4400.4,4399.1,0.4446]
[1757596385897,1.5491,4400.4,4399.0,0.253]
[1757596385898,1.5491,4400.4,4399.6,0.4446]
[1757596386102,1.5491,4399.9,4399.7,0.253]
[1757596386301,1.5491,4399.9,4397.8,1.02293]
[1757596386302,1.5491,4399.9,4399.4,0.143]
[1757596386504,0.6448,4400.0,4399.4,0.143]
[1757596386704,2.1939,4400.0,4399.4,0.143]
[1757596387112,2.1939,4400.0,4398.9,0.4446]
[1757596387113,1.5491,4399.9,4398.9,0.4446]
[1757596387311,1.5491,4399.9,4398.4,0.17784816]
[1757596387506,1.5491,4399.9,4398.5,0.089]
[1757596387812,1.5491,4399.7,4398.6,0.075]
[1757596388000,0.6448,4400.0,4398.7,0.075]
[1757596388001,0.6448,4399.0,4398.7,0.075]
[1757596388205,1.5491,4398.9,4398.0,0.253]
[1757596388405,1.5491,4398.9,4396.3,2.275]
[1757596388406,0.6448,4398.0,4397.8,0.253]
[1757596388707,1.5491,4397.9,4397.8,0.253]
[1757596389206,2.1939,4398.5,4397.9,0.40917]
[1757596389405,1.5491,4398.5,4397.8,0.6976]
[1757596390115,2.1939,4398.0,4397.9,0.253]
[1757596390507,1.5491,4398.0,4397.9,0.253]
[1757596391014,2.1939,4398.5,4397.9,0.253]
[1757596391506,1.5491,4397.4,4396.5,0.18284588]
[1757596391712,2.1939,4397.5,4396.9,0.252]
[1757596391917,2.1939,4397.5,4396.9,3.19363859]
[1757596392107,2.1939,4397.5,4396.9,0.66126]
[1757596392307,2.1939,4397.5,4396.9,0.252]
[1757596393008,1.5491,4397.5,4397.1,0.40924]
[1757596393209,2.1939,4398.0,4397.2,0.4446]
[1757596393411,0.6448,4398.0,4397.2,2.93465063]
[1757596393615,1.5491,4397.9,4397.6,0.0898946]
[1757596393822,1.5491,4397.9,4397.6,0.3418946]
[1757596394404,0.6448,4398.0,4397.6,0.3418946]
[1757596394603,1.5491,4397.9,4397.8,0.0898946]
[1757596397206,1.5491,4397.8,4395.8,0.40936]
[1757596397412,1.5491,4397.8,4395.2,1.02354]
[1757596397413,1.5491,4397.8,4395.9,0.252]
[1757596397627,0.6448,4398.0,4396.0,43.72345636]
[1757596397814,1.7151,4397.9,4396.1,0.40933]
[1757596398009,0.6448,4398.0,4396.0,40.8]
[1757596398312,0.6448,4398.0,4396.4,1.55776]
[1757596398313,1.5491,4397.9,4396.4,1.55776]
[1757596398512,1.5491,4397.9,4397.2,0.40923]
[1757596398712,1.5491,4397.9,4397.5,0.4092]
[1757596398918,1.5491,4397.9,4397.6,0.40919]
[1757596399119,2.1939,4398.5,4397.6,2.93189536]
[1757596399316,2.1939,4398.5,4397.7,0.40918]
[1757596399512,2.1939,4398.5,4397.5,0.5345]
[1757596399712,1.5491,4398.4,4397.6,0.251]
[1757596399918,1.5491,4398.4,4397.6,3.18289536]
[1757596400124,1.5491,4398.4,4397.6,0.66019]
[1757596400414,1.5491,4398.4,4397.7,2.95381258]
[1757596400717,0.6448,4398.0,4397.6,0.251]
[1757596401213,1.5491,4397.9,4397.6,0.251]
[1757596401418,0.6448,4398.0,4397.6,0.251]
[1757596401619,1.5491,4397.9,4397.6,0.251]
[1757596402318,0.6448,4398.0,4397.6,0.251]
[1757596402623,1.5491,4397.9,4397.6,0.251]
[1757596403714,1.5491,4398.4,4397.7,2.9042439]
[1757596404222,0.6448,4398.5,4397.7,2.9042439]
[1757596404617,1.5491,4398.4,4397.7,2.9042439]
[1757596404818,1.5491,4397.9,4397.8,40.8]
[1757596405321,1.5491,4397.9,4397.6,0.251]
[1757596405515,0.6448,4398.0,4397.6,0.251]
[1757596405822,1.5491,4397.9,4397.6,0.251]
[1757596406014,0.6448,4398.0,4397.6,0.251]
[1757596406417,1.5491,4397.9,4397.6,0.251]
[1757596407918,1.5491,4397.9,4396.7,0.1823976]
[1757596408120,1.5327,4397.4,4397.0,0.25]
[1757596411428,0.5951,4397.5,4397.0,0.25]
[1757596411633,1.5327,4397.4,4397.0,0.25]
[1757596412721,0.5951,4397.5,4395.7,33.76243]
[1757596412722,0.5951,4396.5,4396.2,2.84145475]
[1757596413023,0.5951,4396.5,4395.7,32.739]
[1757596413024,1.5327,4395.9,4395.7,32.739]
[1757596413426,0.5951,4396.0,4395.7,32.739]
[1757596414121,0.5951,4397.0,4396.0,0.40934]
[1757596414326,0.5951,4396.5,4396.0,40.8]
[1757596414530,1.5327,4396.4,4396.1,0.25]
[1757596414729,0.5951,4396.5,4396.1,0.25]
[1757596415030,1.5327,4396.4,4396.1,0.25]
[1757596415941,0.5951,4396.5,4395.3,1.82212708]
[1757596416230,0.5951,4396.5,4394.5,0.6303]
[1757596416231,4.47748,4396.4,4394.2,1.4972]
[1757596416423,0.47748,4396.4,4394.2,1.4972]
[1757596416622,0.22752,4396.3,4394.2,1.4972]
[1757596417122,0.22752,4396.2,4394.2,1.4972]
[1757596417323,0.22752,4396.3,4393.5,0.6303]
[1757596417521,0.22752,4396.3,4392.7,1.6632]
[1757596417522,0.58932279,4396.2,4392.7,1.6632]
[1757596417723,0.58932279,4396.1,4393.0,2.1275]
[1757596417927,0.65332279,4396.0,4393.1,1.4972]
[1757596418126,0.064,4396.0,4392.7,0.166]
[1757596418433,0.81682111,4395.9,4392.8,0.17300841]
[1757596418629,0.58926111,4395.8,4392.8,0.17300841]
[1757596418826,0.58926111,4395.7,4393.6,0.0803]
[1757596419022,0.22757,4395.7,4393.6,0.0803]
[1757596419220,0.035,4395.6,4393.6,0.0803]
[1757596419421,0.002,4395.5,4393.6,0.0803]
[1757596419727,0.18033703,4395.8,4393.6,0.0803]
[1757596419918,0.22753,4396.3,4393.7,1.4972]
[1757596420122,0.058,4396.2,4393.7,1.4972]
[1757596420632,0.5951,4396.5,4393.9,1.4972]
[1757596420837,0.5951,4396.5,4394.3,1.4972]
[1757596421033,0.25,4396.4,4394.7,1.4972]
[1757596421326,0.25,4396.4,4394.1,0.25]
[1757596421535,0.25,4396.4,4394.0,0.6303]
[1757596421731,0.81455984,4396.3,4393.8,1.4972]
[1757596421929,0.58701794,4396.2,4393.6,0.0803]
[1757596422124,0.58701794,4396.1,4393.6,0.0803]
[1757596422324,0.58701794,4396.0,4393.6,0.0803]
[1757596422525,0.58701794,4395.9,4393.6,0.0803]
[1757596422833,0.25,4396.4,4389.7,1.4972]
[1757596422834,3.761,4395.6,4389.7,1.4972]
[1757596423033,2.275,4394.6,4389.7,1.4972]
[1757596423331,1.19689681,4393.8,4389.7,1.4972]
[1757596423528,1.19689681,4393.3,4389.7,1.4972]
[1757596423727,33.60501794,4393.2,4389.7,1.4972]
[1757596423923,0.83901794,4393.1,4389.7,1.4972]
[1757596424124,0.58701794,4393.0,4389.7,1.4972]
[1757596424432,0.58701794,4392.9,4389.9,1.4972]
[1757596424632,0.58701794,4392.8,4390.0,0.6303]
[1757596424937,0.58701794,4392.7,4390.1,1.4972]
[1757596425140,0.22771,4393.0,4389.8,0.0993]
[1757596425141,0.83901794,4392.6,4389.8,0.0993]
[1757596425329,0.58442504,4392.5,4389.8,0.0993]
[1757596425638,1.19689681,4391.9,4388.2,1.4972]
[1757596425935,2.03532185,4391.8,4388.2,1.4972]
[1757596426137,0.58942504,4391.7,4388.5,0.6303]
[1757596426329,0.58442504,4391.6,4388.6,1.4972]
[1757596426539,32.777,4391.5,4388.6,1.4972]
[1757596426838,32.777,4391.4,4388.6,1.4972]
[1757596427030,0.254,4391.3,4388.6,1.4972]
[1757596427230,0.48179,4391.3,4388.6,1.4972]
[1757596427632,32.78,4391.4,4388.6,1.4972]
[1757596428032,0.254,4391.3,4388.8,1.4972]
[1757596428232,0.254,4391.2,4388.8,1.4972]
[1757596428436,32.78,4391.4,4388.8,1.4972]
[1757596428639,0.254,4391.3,4388.8,1.4972]
[1757596428936,0.254,4391.3,4389.1,1.4972]
[1757596429135,0.254,4391.2,4389.1,1.4972]
[1757596429438,0.254,4391.2,4388.4,0.19]
[1757596429439,0.818264,4391.1,4388.6,2.94701593]
[1757596429735,1.78738081,4391.0,4388.1,1.4972]
[1757596429932,1.075294,4390.9,4388.1,1.4972]
[1757596430140,0.785484,4390.8,4388.1,1.4972]
[1757596430340,0.595184,4390.7,4388.1,1.4972]
[1757596430538,0.0047,4390.5,4388.1,1.4972]
[1757596430839,0.0047,4390.7,4388.1,1.4972]
[1757596431041,0.0047,4390.5,4388.1,1.4972]
[1757596431334,0.0047,4390.5,4387.4,0.258]
[1757596431335,1.5327,4390.4,4386.5,0.6303]
[1757596431532,1.5327,4390.2,4386.7,0.258]
[1757596431734,1.5327,4390.2,4387.5,3.52954904]
[1757596431934,1.5327,4390.2,4387.5,0.6303]
[1757596431935,0.133,4390.1,4387.5,0.6303]
[1757596432131,2.0686,4390.0,4387.5,0.6303]
[1757596432335,1.5327,4390.0,4387.5,0.6303]
[1757596432641,2.0686,4390.0,4386.5,0.6303]
[1757596432840,1.5327,4389.8,4386.5,0.6303]
[1757596433039,1.5327,4389.4,4386.5,0.6303]
[1757596433239,1.5327,4389.2,4387.1,1.4972]
[1757596433434,1.5327,4388.9,4387.1,1.4972]
[1757596434140,0.259,4388.8,4387.1,1.4972]
[1757596434346,1.5327,4388.9,4387.1,1.4972]
[1757596434538,0.259,4388.8,4387.1,1.4972]
[1757596434942,0.5951,4389.5,4387.1,1.4972]
[1757596434943,2.1278,4389.5,4387.1,1.4972]
[1757596435134,32.796,4389.7,4387.6,1.4972]
[1757596435339,1.5327,4389.6,4387.6,1.4972]
[1757596435744,0.259,4389.5,4387.8,1.4972]
[1757596436134,32.796,4389.7,4387.8,1.4972]
[1757596436341,0.26,4389.6,4387.8,1.4972]
[1757596437144,0.2278,4389.5,4387.8,1.4972]
[1757596437542,0.2278,4389.5,4387.8,1.7572]
[1757596437737,0.2278,4389.5,4389.0,0.6332]
[1757596438042,0.2278,4389.5,4389.1,1.5248]
[1757596438648,0.2278,4389.5,4389.2,4.0]
[1757596438850,1.19689681,4392.8,4389.2,4.0]
[1757596438851,1.4996,4391.7,4389.3,1.93476]
[1757596439146,1.4996,4391.7,4389.6,1.5248]
[1757596439347,1.4996,4391.7,4389.8,1.5248]
[1757596439753,1.02434,4391.9,4390.6,1.5248]
[1757596439948,0.4098,4391.1,4391.0,2.158]
[1757596440145,1.4996,4390.9,4389.0,0.6332]
[1757596440447,0.8655,4391.5,4389.0,0.6332]
[1757596440642,0.131,4391.4,4389.6,2.92099445]
[1757596441144,0.2277,4391.5,4389.7,0.40993]
[1757596441335,0.2277,4391.5,4389.8,0.26]
[1757596441541,32.81,4392.9,4391.0,0.6332]
[1757596441939,1.4996,4393.0,4391.0,0.6332]
[1757596442136,1.4996,4394.3,4391.2,1.5248]
[1757596442339,0.59159176,4394.2,4391.6,1.5248]
[1757596442535,1.4996,4394.0,4391.8,1.5248]
[1757596442741,32.81,4394.4,4392.1,1.5248]
[1757596442941,1.4996,4394.3,4392.1,1.5248]
[1757596443139,1.4996,4394.3,4392.3,1.5248]
[1757596443348,1.4996,4394.3,4392.4,0.26]
[1757596443548,1.4996,4394.3,4392.7,1.5248]
[1757596443843,1.4996,4394.9,4392.7,1.5248]
[1757596444038,1.4996,4394.9,4392.6,0.6332]
[1757596444039,1.4996,4394.9,4392.9,1.5248]
[1757596444243,1.4996,4394.9,4392.9,1.7848]
[1757596444444,1.4996,4394.7,4392.9,1.7848]
[1757596444641,1.4996,4394.7,4393.0,2.89449836]
[1757596444842,1.4996,4394.7,4393.3,1.5248]
[1757596445750,1.4996,4394.5,4392.6,0.6332]
[1757596445943,1.4996,4394.3,4392.6,0.6332]
[1757596446142,1.4996,4394.1,4392.6,0.6332]
[1757596446348,1.4996,4394.1,4391.6,1.5248]
[1757596446349,1.4996,4393.7,4391.6,1.5248]
[1757596446641,1.4996,4393.7,4390.8,0.6332]
[1757596446642,2.1374,4393.2,4390.9,1.5248]
[1757596446846,1.4996,4393.0,4390.9,1.5248]
[1757596447047,1.4996,4392.8,4390.3,1.5248]
[1757596447242,1.4996,4392.5,4390.3,1.5248]
[1757596447452,0.6378,4392.6,4390.3,1.5248]
[1757596447453,1.4996,4392.3,4390.3,1.5248]
[1757596447656,1.4996,4391.9,4390.3,1.5248]
[1757596447843,1.4996,4391.7,4390.3,1.5248]
[1757596448046,0.59455407,4391.6,4390.3,1.5248]
[1757596448657,1.0244,4391.6,4390.3,1.5248]
[1757596448951,0.259,4391.7,4390.2,2.158]
[1757596449151,0.59512229,4391.6,4390.2,0.6332]
[1757596449346,0.259,4391.7,4390.3,1.5248]
[1757596449543,0.59540036,4391.6,4390.3,1.5248]
[1757596449754,2.1374,4392.0,4390.4,1.5248]
[1757596449755,1.4996,4392.0,4390.4,1.5248]
[1757596449946,0.59545135,4391.9,4390.4,1.5248]
[1757596450146,32.801,4392.4,4390.4,1.5248]
[1757596450350,0.85457553,4392.3,4390.4,1.5248]
[1757596450549,0.59557553,4392.2,4390.5,2.96964092]
[1757596450752,0.59557553,4392.1,4390.6,1.5248]
[1757596450947,32.801,4392.4,4390.6,1.5248]
[1757596451149,0.59596106,4392.3,4390.8,0.6332]
[1757596451452,0.59596106,4392.2,4390.9,1.5248]
[1757596451646,1.19689681,4393.7,4391.7,0.40974]
[1757596451844,1.59586242,4394.2,4391.4,0.6332]
[1757596451845,0.59686616,4393.6,4392.1,0.4097]
[1757596452047,1.44889681,4394.5,4392.3,1.5248]
[1757596452240,1.44889681,4394.5,4392.0,0.6332]
[1757596452241,1.4996,4394.3,4392.4,0.259]
[1757596452441,0.5969349,4394.2,4392.6,0.6332]
[1757596452847,0.5969349,4394.2,4392.8,1.5248]
[1757596453447,0.5969349,4394.2,4392.8,1.93444]
[1757596453644,1.4996,4394.8,4393.2,2.158]
[1757596453845,32.802,4395.5,4393.4,1.5248]
[1757596453846,0.59629971,4394.7,4393.4,1.5248]
[1757596454045,1.4996,4395.4,4393.4,1.93438]
[1757596454351,0.59630394,4395.3,4393.6,1.5248]
[1757596454546,0.59630394,4395.2,4393.6,1.5248]
[1757596454755,1.4996,4395.4,4393.9,1.5248]
[1757596454952,0.59503008,4395.3,4394.0,40.8]
[1757596455155,1.4996,4395.4,4394.0,40.8]
[1757596455356,0.59435771,4395.3,4394.0,41.058]
[1757596455656,1.4996,4395.5,4393.9,1.5248]
[1757596455960,1.4996,4395.3,4393.4,0.258]
[1757596456164,0.6378,4395.0,4393.4,0.258]
[1757596456363,1.4996,4394.8,4393.3,42.3248]
[1757596456660,0.6378,4395.0,4393.3,42.3248]
[1757596456661,1.4996,4394.6,4393.3,1.5248]
[1757596457759,1.4996,4395.5,4393.3,1.5248]
[1757596457962,1.4996,4395.5,4393.9,1.5248]
[1757596458258,1.4996,4395.5,4393.8,0.6332]
[1757596458259,1.4996,4395.5,4394.1,1.5248]
[1757596458656,1.99482803,4397.5,4394.0,0.258]
[1757596458657,1.4996,4396.1,4394.5,1.5248]
[1757596458857,1.4996,4396.7,4394.7,1.5248]
[1757596459054,0.59422381,4396.6,4394.7,1.5248]
[1757596459249,0.6378,4395.0,4394.5,2.98920939]
[1757596459451,0.01707805,4394.8,4393.2,2.158]
[1757596459652,1.4996,4394.7,4393.2,1.5248]
[1757596460467,0.01707805,4394.0,4393.2,1.5248]
[1757596461465,1.4996,4394.3,4393.2,1.5248]
[1757596461759,0.01707805,4393.6,4393.0,1.7828]
[1757596461956,0.01707805,4393.6,4393.0,1.5248]
[1757596462658,0.01707805,4393.3,4393.0,1.5248]
[1757596462859,0.01707805,4393.3,4392.9,0.258]
[1757596463656,0.01707805,4393.1,4392.7,1.7818]
[1757596464158,0.01707805,4393.1,4392.7,0.257]
[1757596464362,0.01707805,4393.1,4392.7,1.5248]
[1757596464857,0.01707805,4393.1,4391.1,1.02451]
[1757596464858,1.51667805,4392.9,4391.4,2.158]
[1757596465057,0.01707805,4392.9,4391.5,1.5248]
[1757596465256,0.01707805,4392.9,4392.2,1.5248]
[1757596465457,0.01707805,4392.9,4392.2,1.7838]
[1757596465654,0.01707805,4392.6,4392.2,1.7838]
[1757596465866,1.4996,4394.1,4392.4,1.5248]
[1757596466059,0.58564724,4394.0,4392.4,1.5248]
[1757596466261,0.58620714,4393.9,4392.4,1.5248]
[1757596466558,1.4996,4394.1,4392.4,1.5248]
[1757596466763,0.58605637,4394.0,4392.4,0.40968]
[1757596467062,1.4996,4394.1,4392.7,1.5248]
[1757596467261,0.58609835,4394.0,4392.7,1.5248]
[1757596467464,2.16519835,4393.9,4392.7,1.5248]
[1757596467667,0.01882391,4393.3,4392.7,1.5248]
[1757596468555,1.5791,4393.9,4392.7,1.5248]
[1757596468754,0.01882391,4393.0,4392.7,1.561]